lending/lending_fUSD_20241120
["ID","MTS","AMOUNT","RATE_DAILY","PERIOD"]
[342720952,1732086665158,-355.5,0.00047666,120]
[342720953,1732086665169,-195.299,0.0004769,120]
[342720954,1732086665178,-2000.0,0.000477,120]
[342720955,1732086665188,-889.0,0.000477,120]
[342720956,1732086665197,-150.0,0.0004772,30]
[342720957,1732086665206,-2588.99,0.000478,90]
[342720958,1732086665215,-57850.0,0.0004785,120]
[342720959,1732086665223,-928.5,0.000479,7]
[342720960,1732086665232,-152.956765,0.00047911,30]
[342720961,1732086665241,-152.956765,0.00047911,30]
[342720962,1732086665251,-155.665654,0.00047911,30]
[342720963,1732086665260,-69544.0,0.0004793,120]
[342720964,1732086665269,-2210.63667067,0.00048,120]
[342720965,1732086665279,-400.0,0.00048,120]
[342720966,1732086665288,-1577.57070789,0.00048,120]
[342720967,1732086665297,-7269.85972977,0.00048,120]
[342720968,1732086665403,-5653.2,0.00048,117]
[342720969,1732086665414,-2302.06,0.00048043,2]
[342720970,1732086665425,-75000.0,0.0004823,120]
[342720971,1732086665435,-150.0,0.0004845,2]
[342720972,1732086665445,-1600.0,0.000485,120]
[342720973,1732086665455,-162.12,0.00048518,2]
[342720974,1732086665467,-75000.0,0.0004855,120]
[342720975,1732086665476,-49580.0,0.0004865,120]
[342720976,1732086665487,-151.0,0.00048724,8]
[342720977,1732086665496,-50000.0,0.000488,120]
[342720978,1732086665505,-1988.668,0.000488,90]
[342720979,1732086665516,-151.0,0.00048801,30]
[342720980,1732086665529,-150.0,0.00048801,30]
[342720981,1732086665538,-75000.0,0.0004886,120]
[342720982,1732086665548,-39200.0,0.0004888,120]
[342720983,1732086665558,-2685.28181434,0.00048899,47]
[342720984,1732086665570,-214.0,0.000489,30]
[342720985,1732086665580,-215.0,0.000489,30]
[342720986,1732086665589,-201.0,0.000489,30]
[342720987,1732086665598,-204.0,0.000489,30]
[342720988,1732086665609,-170000.0,0.00049,120]
[342720989,1732086665619,-10000.0,0.00049,120]
[342720990,1732086665630,-500000.0,0.00049,120]
[342720991,1732086665639,-2124.51283589,0.00049,2]
[342720992,1732086665650,-550.0,0.00049,2]
[342720993,1732086665661,-550.0,0.00049,2]
[342720994,1732086665670,-152.956765,0.00049108,30]
[342720995,1732086665680,-150.0,0.00049315,2]
[342720996,1732086665691,-70000.0,0.0004945,120]
[342720997,1732086665701,-3030.1220204,0.00049466,2]
[342720998,1732086665711,-8130.3133921,0.00049466,2]
[342720999,1732086665722,-42144.13,0.000495,120]
[342721000,1732086665731,-187.43628733,0.00049561,120]
[342721001,1732086665740,-4453.334,0.00049564,120]
[342721002,1732086665749,-237288.56,0.00049645,7]
[342721003,1732086665758,-4219.49,0.00049645,7]
[342721004,1732086665767,-3069.71,0.00049645,7]
[342721005,1732086665776,-1859.62771804,0.000498,120]
[342721006,1732086665786,-28395.89172745,0.000498,30]
[342721007,1732086665795,-5689.20794624,0.000498,120]
[342721008,1732086665805,-99290.08024946,0.000498,120]
[342721009,1732086665814,-6075.95963321,0.000498,120]
[342721010,1732086665826,-9359.19061851,0.000498,120]
[342721011,1732086665835,-3267.97979251,0.000498,120]
[342721012,1732086665844,-1201.79118521,0.000498,120]
[342721013,1732086665854,-276.64747902,0.000498,120]
[342721014,1732086665863,-47055.0,0.0004982,120]
[342721015,1732086665873,-65893.3005658,0.0004988,30]
[342721016,1732086665882,-20000.0,0.000499,2]
[342721017,1732086665892,-500.0,0.00049945,120]
[342721018,1732086665902,-521356.08127223,0.0004998,120]
[342721019,1732086665913,-1534.05127281,0.0005,60]
[342721020,1732086665923,-2605.13662625,0.0005,5]
[342721021,1732086665933,-211970.24521429,0.0005,120]
[342721022,1732086665942,-482.04610414,0.0005,120]
[342721023,1732086665952,-1128.62931595,0.0005,2]
[342721024,1732086665963,-3947.57170174,0.0005,2]
[342721025,1732086665974,-1234.61382254,0.0005,120]
[342721026,1732086665984,-992.75300606,0.0005,120]
[342721027,1732086665994,-3878.75968937,0.0005,120]
[342721028,1732086666004,-151.70087476,0.0005,120]
[342721029,1732086666013,-500.0,0.0005,30]
[342721030,1732086666023,-90378.86523087,0.0005,120]
[342721031,1732086666032,-5528.08326127,0.0005,60]
[342721032,1732086666042,-50725.44747478,0.0005,120]
[342721033,1732086666051,-12000.0,0.0005,120]
[342721034,1732086666061,-463.94,0.0005,30]
[342721035,1732086666077,-836.20616879,0.0005,120]
[342721036,1732086666097,-200.0,0.0005,120]
[342721037,1732086666117,-2256.0,0.0005,120]
[342721038,1732086666137,-156.96,0.0005,120]
[342721039,1732086666154,-3287.91578915,0.0005,30]
[342721040,1732086666174,-151.0,0.0005,120]
[342721041,1732086666193,-4653.0,0.0005,120]
[342721042,1732086666210,-363.0,0.0005,120]
[342721043,1732086666227,-199.1985648,0.0005,120]
[342721044,1732086666245,-355.5,0.0005025,120]
[342721045,1732086666263,-2302.06,0.00050256,2]
[342721046,1732086666278,-773.75,0.000503,14]
[342721047,1732086666295,-152.956765,0.00050306,30]
[342721048,1732086666313,-155.665654,0.00050306,30]
[342721049,1732086666333,-216.2907989,0.000509,120]
[342721050,1732086666348,-251085.06177531,0.000509,30]
[342721051,1732086666363,-44133.64464273,0.00051,120]
[342721052,1732086666379,-261.8701178,0.00051,14]
[342721053,1732086666394,-600.0,0.00051,2]
[342721054,1732086666409,-600.0,0.00051,2]
[342721055,1732086666424,-150.0,0.00051,100]
[342721056,1732086666439,-214.0,0.0005111,30]
[342721057,1732086666454,-204.0,0.0005111,30]
[342721058,1732086666469,-215.0,0.0005111,30]
[342721059,1732086666485,-201.0,0.0005111,30]
[342721060,1732086666501,-204.0,0.0005111,30]
[342721061,1732086666516,-6057.0,0.0005125,117]
[342721062,1732086666533,-150.0,0.000515,101]
[342721063,1732086666548,-500.0,0.000518,120]
[342721064,1732086666564,-299999.6270847,0.0005188,30]
[342721065,1732086666582,-75000.0,0.0005191,120]
[342721066,1732086666598,-1374.76,0.00051999,2]
[342721067,1732086666613,-795.68075775,0.00052,120]
[342721068,1732086666629,-3332.61285094,0.00052,120]
[342721069,1732086666645,-1118.1633013,0.00052,120]
[342721070,1732086666660,-150.0,0.00052,102]
[342721071,1732086666676,-13551.0,0.000525,30]
[342721072,1732086666694,-150.0,0.000525,103]
[342721073,1732086666711,-193.5315,0.0005261,120]
[342721074,1732086666727,-156.46075,0.00052705,120]
[342721075,1732086666743,-500.0,0.000528,120]
[342721076,1732086666758,-355.5,0.00052834,120]
[342721077,1732086666774,-70000.0,0.0005285,120]
[342721078,1732086666789,-571.93479201,0.00053,2]
[342721079,1732086666806,-300.34324223,0.00053,90]
[342721080,1732086666822,-650.0,0.00053,2]
[342721081,1732086666837,-650.0,0.00053,2]
[342721082,1732086666853,-150.0,0.00053,104]
[342721083,1732086666867,-443.34015899,0.0005331,2]
[342721084,1732086666882,-214.0,0.0005332,30]
[342721085,1732086666897,-204.0,0.0005332,30]
[342721086,1732086666912,-215.0,0.0005332,30]
[342721087,1732086666927,-201.0,0.0005332,30]
[342721088,1732086666942,-204.0,0.0005332,30]
[342721089,1732086666957,-150.0,0.000535,105]
[342721090,1732086666973,-235.62,0.00053664,120]
[342721091,1732086666988,-288.56,0.00053756,2]
[342721092,1732086667003,-530.05,0.00053756,2]
[342721093,1732086667018,-212.9,0.00053756,2]
[342721094,1732086667032,-500.0,0.000538,120]
[342721095,1732086667047,-1499.0,0.000538,120]
[342721096,1732086667061,-1728.8085,0.00053813,120]
[342721097,1732086667077,-2298.81725,0.00053815,120]
[342721098,1732086667092,-70000.0,0.0005385,120]
[342721099,1732086667107,-299999.95856497,0.0005388,30]
[342721100,1732086667238,-24653.84914254,0.000539,120]
[342721101,1732086667267,-11197.37192195,0.00053987,60]
[342721102,1732086667277,-150.27739523,0.00054,2]
[342721103,1732086667288,-327.48193666,0.00054,30]
[342721104,1732086667298,-1050.0,0.00054,120]
[342721105,1732086667314,-151.0,0.00054,120]
[342721106,1732086667325,-260.73,0.00054,120]
[342721107,1732086667334,-260.73,0.00054,120]
[342721108,1732086667343,-260.73,0.00054,120]
[342721109,1732086667354,-260.73,0.00054,120]
[342721110,1732086667363,-260.73,0.00054,120]
[342721111,1732086667372,-260.73,0.00054,120]
[342721112,1732086667383,-260.73,0.00054,120]
[342721113,1732086667393,-260.73,0.00054,120]
[342721114,1732086667402,-260.73,0.00054,120]
[342721115,1732086667411,-260.73,0.00054,120]
[342721116,1732086667421,-260.73,0.00054,120]
[342721117,1732086667431,-260.73,0.00054,120]
[342721118,1732086667450,-260.73,0.00054,120]
[342721119,1732086667459,-260.73,0.00054,120]
[342721120,1732086667469,-260.73,0.00054,120]
[342721121,1732086667478,-260.73,0.00054,120]
[342721122,1732086667487,-260.73,0.00054,120]
[342721123,1732086667497,-260.73,0.00054,120]
[342721124,1732086667510,-260.73,0.00054,120]
[342721125,1732086667528,-260.73,0.00054,120]
[342721126,1732086667539,-260.73,0.00054,120]
[342721127,1732086667550,-260.73,0.00054,120]
[342721128,1732086667561,-260.73,0.00054,120]
[342721129,1732086667572,-260.73,0.00054,120]
[342721130,1732086667581,-260.73,0.00054,120]
[342721131,1732086667593,-260.73,0.00054,120]
[342721132,1732086667604,-260.73,0.00054,120]
[342721133,1732086667615,-260.73,0.00054,120]
[342721134,1732086667625,-260.73,0.00054,120]
[342721135,1732086667638,-260.73,0.00054,120]
[342721136,1732086667648,-260.73,0.00054,120]
[342721137,1732086667658,-260.73,0.00054,120]
[342721138,1732086667667,-260.73,0.00054,120]
[342721139,1732086667677,-260.73,0.00054,120]
[342721140,1732086667686,-260.73,0.00054,120]
[342721141,1732086667696,-260.73,0.00054,120]
[342721142,1732086667705,-260.73,0.00054,120]
[342721143,1732086667715,-260.73,0.00054,120]
[342721144,1732086667725,-260.73,0.00054,120]
[342721145,1732086667736,-260.73,0.00054,120]
[342721146,1732086667746,-260.73,0.00054,120]
[342721147,1732086667756,-260.73,0.00054,120]
[342721148,1732086667766,-260.73,0.00054,120]
[342721149,1732086667776,-260.73,0.00054,120]
[342721150,1732086667786,-260.73,0.00054,120]
[342721151,1732086667796,-260.73,0.00054,120]
[342721152,1732086667805,-260.73,0.00054,120]
[342721153,1732086667815,-260.73,0.00054,120]
[342721154,1732086667826,-260.73,0.00054,120]
[342721155,1732086667835,-260.73,0.00054,120]
[342721156,1732086667846,-260.73,0.00054,120]
[342721157,1732086667855,-260.73,0.00054,120]
[342721158,1732086667864,-260.73,0.00054,120]
[342721159,1732086667874,-260.73,0.00054,120]
[342721160,1732086667884,-260.73,0.00054,120]
[342721161,1732086667893,-260.73,0.00054,120]
[342721162,1732086667903,-150.0,0.00054,106]
[342721163,1732086667912,-500.0,0.000544,120]
[342721164,1732086667922,-548012.06055531,0.000544,120]
[342721165,1732086667932,-945.203448,0.000545,30]
[342721166,1732086667941,-6460.8,0.000545,117]
[342721167,1732086667951,-522.283224,0.000545,30]
[342721168,1732086667960,-150.0,0.000545,107]
[342721169,1732086667970,-100000.0,0.0005454,30]
[342721170,1732086667979,-70000.0,0.0005455,120]
[342721171,1732086667988,-3632.4331167,0.00054756,2]
[342721172,1732086667998,-9746.4126581,0.00054756,2]
[342721173,1732086668007,-11708.52272113,0.0005477,13]
[342721174,1732086668016,-124311.26623482,0.0005478,30]
[342721175,1732086668026,-500.99706159,0.00054794,120]
[342721176,1732086668035,-500.0,0.00054794,120]
[342721177,1732086668045,-500.0,0.00054794,120]
[342721178,1732086668054,-500.0,0.00054794,120]
[342721179,1732086668064,-500.0,0.00054794,120]
[342721180,1732086668075,-500.0,0.00054794,120]
[342721181,1732086668085,-500.0,0.00054794,120]
[342721182,1732086668094,-500.0,0.00054794,120]
[342721183,1732086668104,-500.0,0.00054794,120]
[342721184,1732086668114,-286.33871518,0.00054794,5]
[342721185,1732086668124,-500.0,0.00054794,120]
[342721186,1732086668134,-500.0,0.00054794,120]
[342721187,1732086668143,-295.69382382,0.00054794,120]
[342721188,1732086668153,-500.0,0.00054794,120]
[342721189,1732086668163,-500.0,0.00054794,120]
[342721190,1732086668172,-500.0,0.00054794,120]
[342721191,1732086668181,-500.0,0.00054794,7]
[342721192,1732086668191,-500.0,0.00054794,120]
[342721193,1732086668202,-500.0,0.00054794,120]
[342721194,1732086668211,-500.0,0.00054794,120]
[342721195,1732086668222,-500.0,0.00054794,120]
[342721196,1732086668231,-500.0,0.00054794,120]
[342721197,1732086668241,-646.74768428,0.00054794,120]
[342721198,1732086668251,-500.0,0.00054794,120]
[342721199,1732086668260,-500.0,0.00054794,120]
[342721200,1732086668270,-517.95757866,0.00054794,120]
[342721201,1732086668279,-522.34798059,0.00054794,120]
[342721202,1732086668289,-515.39887579,0.00054794,120]
[342721203,1732086668299,-500.72766776,0.00054794,120]
[342721204,1732086668312,-561.63011202,0.00054794,120]
[342721205,1732086668323,-3015.583357,0.00054794,120]
[342721206,1732086668332,-500.0,0.00054794,120]
[342721207,1732086668343,-500.0,0.00054794,120]
[342721208,1732086668352,-500.0,0.00054794,120]
[342721209,1732086668362,-500.0,0.00054794,120]
[342721210,1732086668374,-500.7505129,0.00054794,120]
[342721211,1732086668385,-500.59247821,0.00054794,120]
[342721212,1732086668395,-354.77793252,0.00054794,120]
[342721213,1732086668406,-500.78474558,0.00054794,120]
[342721214,1732086668416,-500.76087481,0.00054794,120]
[342721215,1732086668425,-501.0825537,0.00054794,120]
[342721216,1732086668435,-500.0,0.00054794,120]
[342721217,1732086668446,-2434.320799,0.00054794,120]
[342721218,1732086668456,-503.5792946,0.00054794,120]
[342721219,1732086668465,-500.0,0.00054794,120]
[342721220,1732086668475,-500.0,0.00054794,120]
[342721221,1732086668484,-500.0,0.00054794,120]
[342721222,1732086668493,-500.0,0.00054794,120]
[342721223,1732086668502,-500.0,0.00054794,120]
[342721224,1732086668512,-500.0,0.00054794,120]
[342721225,1732086668521,-500.0,0.00054794,120]
[342721226,1732086668530,-503.06729431,0.00054794,120]
[342721227,1732086668540,-500.0,0.00054794,120]
[342721228,1732086668549,-500.0,0.00054794,120]
[342721229,1732086668558,-500.0,0.00054794,120]
[342721230,1732086668567,-500.0,0.00054794,120]
[342721231,1732086668577,-500.0,0.00054794,120]
[342721232,1732086668587,-500.0,0.00054794,120]
[342721233,1732086668597,-500.0,0.00054794,120]
[342721234,1732086668606,-229.4767869,0.00054794,120]
[342721235,1732086668616,-500.0,0.00054794,120]
[342721236,1732086668626,-500.40642086,0.00054794,120]
[342721237,1732086668635,-500.0,0.00054794,120]
[342721238,1732086668645,-500.0,0.00054794,120]
[342721239,1732086668655,-501.47458383,0.00054794,120]
[342721240,1732086668666,-503.1745019,0.00054794,120]
[342721241,1732086668675,-500.0,0.00054794,120]
[342721242,1732086668685,-500.0,0.00054794,120]
[342721243,1732086668695,-1169.39995785,0.00054794,30]
[342721244,1732086668705,-500.0,0.00054794,120]
[342721245,1732086668714,-500.0,0.00054794,120]
[342721246,1732086668726,-500.0,0.00054794,120]
[342721247,1732086668736,-500.72227398,0.00054794,120]
[342721248,1732086668745,-500.0,0.00054794,120]
[342721249,1732086668754,-500.90497275,0.00054794,120]
[342721250,1732086668763,-500.0,0.00054794,120]
[342721251,1732086668772,-500.0,0.00054794,120]
[342721252,1732086668781,-500.0,0.00054794,120]
[342721253,1732086668791,-500.0,0.00054794,120]
[342721254,1732086668893,-500.35984402,0.00054794,120]
[342721255,1732086668903,-500.45172117,0.00054794,120]
[342721256,1732086668912,-500.0,0.00054794,120]
[342721257,1732086668921,-500.0,0.00054794,120]
[342721258,1732086668930,-500.0,0.00054794,120]
[342721259,1732086668940,-500.0,0.00054794,120]
[342721260,1732086668949,-500.0,0.00054794,120]
[342721261,1732086668964,-500.55734008,0.00054794,120]
[342721262,1732086668973,-500.0,0.00054794,120]
[342721263,1732086668982,-500.62710223,0.00054794,120]
[342721264,1732086668993,-500.0,0.00054794,120]
[342721265,1732086669002,-501.2587504,0.00054794,120]
[342721266,1732086669011,-500.0,0.00054794,120]
[342721267,1732086669021,-514.45304043,0.00054794,120]
[342721268,1732086669031,-500.0,0.00054794,120]
[342721269,1732086669040,-500.5182189,0.00054794,120]
[342721270,1732086669049,-200.0,0.00054794,10]
[342721271,1732086669058,-505.44554089,0.00054794,120]
[342721272,1732086669067,-500.0,0.00054794,120]
[342721273,1732086669077,-500.72587977,0.00054794,120]
[342721274,1732086669087,-500.0,0.00054794,120]
[342721275,1732086669096,-500.0,0.00054794,120]
[342721276,1732086669105,-500.197074,0.00054794,120]
[342721277,1732086669114,-500.6630011,0.00054794,120]
[342721278,1732086669124,-500.0,0.00054794,120]
[342721279,1732086669133,-500.0,0.00054794,120]
[342721280,1732086669142,-500.0,0.00054794,120]
[342721281,1732086669152,-501.12875156,0.00054794,120]
[342721282,1732086669161,-500.0,0.00054794,120]
[342721283,1732086669171,-504.26676667,0.00054794,120]
[342721284,1732086669179,-540.96304281,0.00054794,120]
[342721285,1732086669190,-500.0,0.00054794,120]
[342721286,1732086669199,-500.0,0.00054794,120]
[342721287,1732086669208,-500.0,0.00054794,120]
[342721288,1732086669218,-500.0,0.00054794,120]
[342721289,1732086669228,-500.0,0.00054794,120]
[342721290,1732086669239,-500.0,0.00054794,120]
[342721291,1732086669249,-500.0,0.00054794,120]
[342721292,1732086669258,-500.0,0.00054794,120]
[342721293,1732086669268,-503.4925924,0.00054794,120]
[342721294,1732086669277,-500.0,0.00054794,120]
[342721295,1732086669286,-500.0,0.00054794,120]
[342721296,1732086669295,-500.0,0.00054794,120]
[342721297,1732086669307,-500.0,0.00054794,120]
[342721298,1732086669317,-500.0,0.00054794,120]
[342721299,1732086669327,-323.9719201,0.00054794,120]
[342721300,1732086669336,-152.07287359,0.00054794,120]
[342721301,1732086669346,-508.42098134,0.00054794,120]
[342721302,1732086669355,-500.17653587,0.00054794,120]
[342721303,1732086669364,-500.0,0.00054794,120]
[342721304,1732086669373,-574.50068601,0.00054794,120]
[342721305,1732086669384,-500.53325067,0.00054794,120]
[342721306,1732086669394,-534.46391021,0.00054794,120]
[342721307,1732086669404,-500.0,0.00054794,120]
[342721308,1732086669414,-500.0,0.00054794,120]
[342721309,1732086669423,-503.8819632,0.00054794,120]
[342721310,1732086669433,-500.0,0.00054794,120]
[342721311,1732086669442,-501.12764719,0.00054794,120]
[342721312,1732086669451,-500.0,0.00054794,120]
[342721313,1732086669460,-500.0,0.00054794,120]
[342721314,1732086669469,-500.0,0.00054794,120]
[342721315,1732086669478,-500.0,0.00054794,120]
[342721316,1732086669487,-500.0,0.00054794,120]
[342721317,1732086669496,-502.36520921,0.00054794,120]
[342721318,1732086669505,-500.0,0.00054794,120]
[342721319,1732086669514,-500.0,0.00054794,120]
[342721320,1732086669523,-500.0,0.00054794,120]
[342721321,1732086669532,-500.0,0.00054794,120]
[342721322,1732086669541,-500.0,0.00054794,120]
[342721323,1732086669552,-500.0,0.00054794,120]
[342721324,1732086669561,-502.86905331,0.00054794,120]
[342721325,1732086669572,-500.0,0.00054794,120]
[342721326,1732086669583,-500.0,0.00054794,120]
[342721327,1732086669592,-500.0,0.00054794,14]
[342721328,1732086669601,-282.65807375,0.00054794,120]
[342721329,1732086669610,-500.0,0.00054794,120]
[342721330,1732086669619,-500.0,0.00054794,120]
[342721331,1732086669629,-502.74844749,0.00054794,120]
[342721332,1732086669638,-500.0,0.00054794,120]
[342721333,1732086669650,-502.74922489,0.00054794,120]
[342721334,1732086669661,-500.0,0.00054794,120]
[342721335,1732086669671,-500.0,0.00054794,120]
[342721336,1732086669681,-500.0,0.00054794,120]
[342721337,1732086669690,-500.0,0.00054794,120]
[342721338,1732086669700,-500.0,0.00054794,120]
[342721339,1732086669709,-500.0,0.00054794,120]
[342721340,1732086669719,-500.0,0.00054794,120]
[342721341,1732086669729,-501.96429778,0.00054794,120]
[342721342,1732086669741,-502.56413591,0.00054794,120]
[342721343,1732086669750,-500.0,0.00054794,7]
[342721344,1732086669759,-500.0,0.00054794,120]
[342721345,1732086669768,-187.427119,0.00054794,120]
[342721346,1732086669780,-500.0,0.00054794,120]
[342721347,1732086669789,-507.79829109,0.00054794,120]
[342721348,1732086669798,-500.0,0.00054794,120]
[342721349,1732086669808,-500.0,0.00054794,120]
[342721350,1732086669818,-500.0,0.00054794,120]
[342721351,1732086669829,-500.0,0.00054794,120]
[342721352,1732086669838,-500.0,0.00054794,120]
[342721353,1732086669847,-500.0,0.00054794,60]
[342721354,1732086669856,-500.0,0.00054794,120]
[342721355,1732086669866,-500.0,0.00054794,120]
[342721356,1732086669875,-503.46372411,0.00054794,120]
[342721357,1732086669885,-500.0,0.00054794,120]
[342721358,1732086669894,-500.0,0.00054794,120]
[342721359,1732086669903,-500.0,0.00054794,120]
[342721360,1732086669913,-500.0,0.00054794,120]
[342721361,1732086669922,-500.0,0.00054794,120]
[342721362,1732086669931,-500.0,0.00054794,120]
[342721363,1732086669940,-500.0,0.00054794,120]
[342721364,1732086669950,-502.82164006,0.00054794,120]
[342721365,1732086669959,-500.0,0.00054794,120]
[342721366,1732086669969,-500.0,0.00054794,120]
[342721367,1732086669979,-500.0,0.00054794,120]
[342721368,1732086669989,-500.52241282,0.00054794,120]
[342721369,1732086669998,-500.0,0.00054794,120]
[342721370,1732086670008,-500.0,0.00054794,120]
[342721371,1732086670019,-500.0,0.00054794,120]
[342721372,1732086670030,-500.0,0.00054794,120]
[342721373,1732086670040,-501.21467472,0.00054794,120]
[342721374,1732086670050,-500.0,0.00054794,120]
[342721375,1732086670059,-500.0,0.00054794,120]
[342721376,1732086670068,-500.0,0.00054794,120]
[342721377,1732086670080,-500.0,0.00054794,120]
[342721378,1732086670089,-500.0,0.00054794,120]
[342721379,1732086670099,-1703.66,0.00054794,120]
[342721380,1732086670108,-966.97,0.00054794,120]
[342721381,1732086670117,-500.0,0.00054794,120]
[342721382,1732086670127,-503.86373759,0.00054794,120]
[342721383,1732086670136,-500.0,0.00054794,120]
[342721384,1732086670146,-350.0,0.00054794,2]
[342721385,1732086670155,-500.0,0.00054794,120]
[342721386,1732086670165,-500.0,0.00054794,120]
[342721387,1732086670176,-500.0,0.00054794,120]
[342721388,1732086670185,-500.0,0.00054794,120]
[342721389,1732086670196,-500.0,0.00054794,120]
[342721390,1732086670207,-500.0,0.00054794,120]
[342721391,1732086670218,-500.0,0.00054794,120]
[342721392,1732086670227,-500.0,0.00054794,120]
[342721393,1732086670236,-500.0,0.00054794,120]
[342721394,1732086670246,-500.0,0.00054794,120]
[342721395,1732086670256,-296.22567934,0.00054794,120]
[342721396,1732086670352,-500.0,0.00054794,120]
[342721397,1732086670361,-500.0,0.00054794,120]
[342721398,1732086670371,-500.0,0.00054794,120]
[342721399,1732086670383,-500.0,0.00054794,120]
[342721400,1732086670392,-500.0,0.00054794,120]
[342721401,1732086670401,-500.0,0.00054794,120]
[342721402,1732086670410,-500.0,0.00054794,120]
[342721403,1732086670419,-500.0,0.00054794,120]
[342721404,1732086670428,-500.8691911,0.00054794,120]
[342721405,1732086670437,-501.6837163,0.00054794,120]
[342721406,1732086670446,-500.0,0.00054794,120]
[342721407,1732086670455,-500.0,0.00054794,120]
[342721408,1732086670464,-500.0,0.00054794,120]
[342721409,1732086670473,-500.0,0.00054794,120]
[342721410,1732086670482,-500.0,0.00054794,120]
[342721411,1732086670491,-500.0,0.00054794,120]
[342721412,1732086670500,-500.0,0.00054794,120]
[342721413,1732086670509,-500.0,0.00054794,120]
[342721414,1732086670519,-500.0,0.00054794,120]
[342721415,1732086670527,-500.0,0.00054794,120]
[342721416,1732086670536,-428.1744922,0.00054794,120]
[342721417,1732086670546,-524.40933297,0.00054794,120]
[342721418,1732086670559,-500.0,0.00054794,120]
[342721419,1732086670567,-500.0,0.00054794,120]
[342721420,1732086670577,-500.0,0.00054794,120]
[342721421,1732086670587,-500.0,0.00054794,120]
[342721422,1732086670597,-552.41778403,0.00054794,120]
[342721423,1732086670606,-500.0,0.00054794,120]
[342721424,1732086670616,-500.0,0.00054794,120]
[342721425,1732086670625,-500.0,0.00054794,120]
[342721426,1732086670634,-500.0,0.00054794,120]
[342721427,1732086670643,-500.45312998,0.00054794,120]
[342721428,1732086670652,-500.0,0.00054794,120]
[342721429,1732086670661,-500.0,0.00054794,120]
[342721430,1732086670669,-500.0,0.00054794,120]
[342721431,1732086670679,-500.29396131,0.00054794,120]
[342721432,1732086670688,-500.0,0.00054794,120]
[342721433,1732086670697,-500.0,0.00054794,120]
[342721434,1732086670705,-500.0,0.00054794,120]
[342721435,1732086670714,-503.99205403,0.00054794,120]
[342721436,1732086670723,-500.0,0.00054794,120]
[342721437,1732086670732,-2720.0,0.00054794,120]
[342721438,1732086670741,-500.0,0.00054794,120]
[342721439,1732086670750,-500.0,0.00054794,120]
[342721440,1732086670759,-500.0,0.00054794,120]
[342721441,1732086670768,-500.0,0.00054794,120]
[342721442,1732086670777,-500.0,0.00054794,120]
[342721443,1732086670786,-500.0,0.00054794,120]
[342721444,1732086670795,-500.0,0.00054794,120]
[342721445,1732086670804,-500.0,0.00054794,120]
[342721446,1732086670814,-500.0,0.00054794,120]
[342721447,1732086670823,-500.0,0.00054794,120]
[342721448,1732086670835,-500.0,0.00054794,120]
[342721449,1732086670844,-500.0,0.00054794,120]
[342721450,1732086670853,-500.0,0.00054794,120]
[342721451,1732086670862,-500.0,0.00054794,120]